bitfinex/quotes_SOLUSD_20250611
["timestamp","ask_amount","ask_price","bid_price","bid_amount"]
[1749685168561,38.98206779,160.88,160.87,0.797007]
[1749685168881,25.38,160.88,160.87,0.797007]
[1749685169096,38.98206779,160.88,160.87,0.797007]
[1749685169260,34.08047523,160.88,160.87,0.797007]
[1749685170395,8.70047523,160.88,160.87,0.797007]
[1749685170570,34.08047523,160.88,160.87,0.797007]
[1749685174072,25.38,160.88,160.87,0.797007]
[1749685174273,32.21441167,160.92,160.87,0.797007]
[1749685174274,8.70047523,160.89,160.87,0.797007]
[1749685174589,25.38,160.88,160.87,0.797007]
[1749685175178,8.70047523,160.91,160.87,0.797007]
[1749685175582,25.38,160.9,160.87,0.797007]
[1749685175784,8.70047523,160.91,160.87,0.797007]
[1749685176087,25.38,160.9,160.87,0.797007]
[1749685176288,34.08047523,160.9,160.87,0.797007]
[1749685176688,25.38,160.89,160.87,0.797007]
[1749685177504,34.08047523,160.89,160.87,0.797007]
[1749685178377,149.1,160.93,160.87,9.49748223]
[1749685178583,34.08047523,160.92,160.87,9.49748223]
[1749685178894,25.38,160.91,160.87,9.49748223]
[1749685179285,34.08047523,160.91,160.87,0.797007]
[1749685179781,25.38,160.91,160.87,0.797007]
[1749685179991,34.08047523,160.91,160.87,0.797007]
[1749685180875,8.70047523,160.9,160.87,0.797007]
[1749685181489,25.38,160.89,160.87,0.797007]
[1749685181887,34.08047523,160.89,160.87,0.797007]
[1749685182079,8.70047523,160.88,160.87,0.797007]
[1749685182393,43.50237615,160.88,160.87,0.797007]
[1749685182595,69.50237615,160.88,160.87,0.797007]
[1749685182984,75.71818917,160.88,160.87,0.797007]
[1749685185390,59.42295794,160.88,160.87,0.797007]
[1749685187101,59.70728108,160.88,160.87,0.797007]
[1749685198007,32.50013616,160.88,160.87,0.797007]
[1749685198184,59.70728108,160.88,160.87,0.797007]
[1749685202110,32.50013616,160.88,160.87,0.797007]
[1749685202311,59.70728108,160.88,160.87,0.797007]
[1749685202911,26.28432314,160.84,160.79,5.44]
[1749685203097,27.20714492,160.8,160.79,5.44]
[1749685203300,52.58714492,160.8,160.79,5.44]
[1749685204021,25.38,160.8,160.79,5.44]
[1749685204205,38.98357246,160.8,160.79,5.44]
[1749685204810,52.58714492,160.8,160.79,5.44]
[1749685207104,25.38,160.8,160.79,5.44]
[1749685207519,38.98357246,160.8,160.79,5.44]
[1749685209311,34.09243949,160.8,160.79,5.44]
[1749685210623,75.16110292,160.8,160.79,5.44]
[1749685210821,75.16110292,160.8,160.74,1.6238]
[1749685211028,8.71243949,160.76,160.74,1.6238]
[1749685211324,25.38,160.75,160.74,1.6238]
[1749685212418,25.38,160.75,160.73,18.64964886]
[1749685212815,34.09243949,160.75,160.72,24.08964886]
[1749685213434,34.09243949,160.75,160.72,5.44]
[1749685214117,8.71243949,160.74,160.72,5.44]
[1749685214296,25.4,160.73,160.72,5.44]
[1749685214922,25.4,160.75,160.73,18.64964886]
[1749685215422,25.4,160.76,160.73,18.64964886]
[1749685216599,8.71243949,160.75,160.72,5.44]
[1749685216814,8.71243949,160.73,160.71,1.6222]
[1749685217030,8.71243949,160.72,160.7,5.44]
[1749685217233,13.62258306,160.72,160.7,5.44]
[1749685217406,39.02258306,160.73,160.7,5.44]
[1749685217807,25.4,160.73,160.7,5.44]
[1749685218124,13.62258306,160.72,160.7,5.44]
[1749685221110,13.62258306,160.71,160.68,24.08964886]
[1749685221532,39.02258306,160.71,160.68,5.44]
[1749685222118,25.4,160.71,160.68,5.44]
[1749685222509,39.02258306,160.71,160.68,5.44]
[1749685223215,13.62258306,160.69,160.68,5.44]
[1749685223923,39.02258306,160.69,160.68,5.44]
[1749685225745,25.4,160.69,160.68,5.44]
[1749685225939,39.02258306,160.69,160.68,5.44]
[1749685228340,25.4,160.69,160.68,5.44]
[1749685229633,13.62258306,160.69,160.68,5.44]
[1749685229963,39.02258306,160.69,160.68,5.44]
[1749685231249,13.62258306,160.69,160.68,5.44]
[1749685231427,39.02258306,160.69,160.68,5.44]
[1749685237146,45.24574567,160.69,160.68,5.44]
[1749685237344,71.24574567,160.69,160.62,42.94]
[1749685237658,13.62258306,160.65,160.62,42.94]
[1749685237852,39.02258306,160.65,160.62,42.94]
[1749685240962,39.02258306,160.65,160.61,24.08964886]
[1749685241359,25.4,160.65,160.61,24.08964886]
[1749685241541,39.02258306,160.65,160.61,24.08964886]
[1749685243460,25.4,160.65,160.61,37.71223192]
[1749685243671,39.02258306,160.65,160.61,37.71223192]
[1749685244255,13.62258306,160.64,160.61,24.08964886]
[1749685244460,13.62258306,160.64,160.61,5.44]
[1749685244760,39.02258306,160.63,160.61,5.44]
[1749685245957,25.4,160.63,160.61,5.44]
[1749685249467,25.4,160.63,160.61,14.1668117]
[1749685249646,25.4,160.64,160.61,14.1668117]
[1749685250769,155.32211891,160.72,160.64,18.64964886]
[1749685251069,8.7268117,160.7,160.66,8.7268117]
[1749685251361,25.4,160.69,160.66,13.62406955]
[1749685251861,13.62406955,160.71,160.66,13.62406955]
[1749685252066,25.4,160.7,160.66,13.62406955]
[1749685252462,13.62406955,160.71,160.67,13.62406955]
[1749685252637,7.879,160.75,160.69,13.62406955]
[1749685252638,6.2175,160.75,160.69,13.62406955]
[1749685252842,13.62406955,160.73,160.69,13.62406955]
[1749685253037,25.4,160.72,160.69,13.62406955]
[1749685253251,13.62406955,160.73,160.65,0.14216157]
[1749685253469,25.4,160.72,160.69,13.62406955]
[1749685253851,13.62406955,160.73,160.69,13.62406955]
[1749685254057,25.4,160.72,160.69,13.62406955]
[1749685255270,39.02406955,160.73,160.69,13.62406955]
[1749685255570,25.4,160.73,160.69,13.62406955]
[1749685256146,39.02406955,160.73,160.69,13.62406955]
[1749685257774,39.02406955,160.73,160.68,13.62406955]
[1749685258065,13.62406955,160.73,160.68,13.62406955]
[1749685258270,25.4,160.72,160.68,13.62406955]
[1749685258962,13.62406955,160.73,160.68,13.62406955]
[1749685259275,39.02406955,160.73,160.68,13.62406955]
[1749685259651,13.62406955,160.73,160.68,13.62406955]
[1749685259850,39.02406955,160.73,160.68,13.62406955]
[1749685260673,25.4,160.73,160.69,13.62406955]
[1749685262070,25.4,160.74,160.7,24.08964886]
[1749685262258,13.62406955,160.75,160.7,37.71371841]
[1749685262458,25.4,160.74,160.7,37.71371841]
[1749685263982,39.02406955,160.75,160.7,24.08964886]
[1749685264154,25.4,160.75,160.7,24.08964886]
[1749685264480,39.02406955,160.74,160.7,24.08964886]
[1749685264657,13.62406955,160.74,160.7,37.71371841]
[1749685265356,8.1939,160.79,160.7,24.08964886]
[1749685265686,13.62406955,160.77,160.72,13.62406955]
[1749685266180,39.02406955,160.77,160.72,13.62406955]
[1749685266557,13.62406955,160.76,160.72,13.62406955]
[1749685267381,25.4,160.77,160.72,13.62406955]
[1749685267584,13.62406955,160.76,160.72,13.62406955]
[1749685268374,13.62406955,160.8,160.7,51.68534886]
[1749685268375,13.62406955,160.78,160.73,13.62406955]
[1749685268684,13.62406955,160.8,160.75,13.62406955]
[1749685268856,149.1,160.81,160.76,32.27371841]
[1749685268857,13.62406955,160.81,160.76,32.27371841]
[1749685269062,39.02406955,160.82,160.77,13.62406955]
[1749685269364,39.02406955,160.82,160.76,18.64964886]
[1749685269580,39.02406955,160.82,160.77,13.62406955]
[1749685273762,13.62406955,160.82,160.78,18.64964886]
[1749685273959,13.62406955,160.83,160.78,32.27371841]
[1749685274288,13.62406955,160.83,160.79,5.44]
[1749685274479,39.00406955,160.83,160.79,5.44]
[1749685276058,39.00406955,160.83,160.79,19.06406955]
[1749685278091,13.62406955,160.83,160.79,19.06406955]
[1749685278282,39.00406955,160.83,160.79,19.06406955]
[1749685287395,34.08551259,160.83,160.79,14.14551259]
[1749685287622,8.70551259,160.83,160.79,14.14551259]
[1749685287797,34.08551259,160.83,160.79,14.14551259]
[1749685288399,34.08551259,160.83,160.79,5.44]
[1749685288703,34.08551259,160.83,160.79,14.14551259]
[1749685289004,8.70551259,160.83,160.79,14.14551259]
[1749685289183,34.08551259,160.83,160.79,14.14551259]
[1749685289885,25.38,160.83,160.79,14.14551259]
[1749685296206,8.70551259,160.84,160.8,8.70551259]
[1749685296505,8.70551259,160.85,160.81,8.70551259]
[1749685297007,25.36,160.84,160.8,8.70551259]
[1749685297204,8.70551259,160.85,160.8,8.70551259]
[1749685297407,25.36,160.84,160.8,8.70551259]
[1749685297616,34.06551259,160.84,160.8,8.70551259]
[1749685298108,8.70551259,160.83,160.79,14.14551259]
[1749685298614,34.06551259,160.84,160.79,14.14551259]
[1749685299985,34.06551259,160.84,160.8,8.70551259]
[1749685301419,25.36,160.84,160.8,8.70551259]
[1749685301711,34.06551259,160.84,160.8,8.70551259]
[1749685302100,25.36,160.84,160.8,8.70551259]
[1749685302516,34.06551259,160.84,160.8,8.70551259]
[1749685303017,34.06551259,160.84,160.79,14.14551259]
[1749685303693,34.06551259,160.84,160.79,5.44]
[1749685303694,8.70551259,160.83,160.79,5.44]
[1749685304202,34.06551259,160.84,160.79,14.14551259]
[1749685304398,34.06551259,160.84,160.8,8.70551259]
[1749685304598,155.3118,160.87,160.83,8.70551259]
[1749685304795,8.70551259,160.9,160.85,8.70551259]
[1749685305220,15.21431259,160.92,160.87,8.70551259]
[1749685305514,25.36,160.91,160.88,8.70551259]
[1749685306019,1.6419,160.93,160.89,8.70551259]
[1749685306194,8.70551259,160.95,160.9,8.70551259]
[1749685306507,25.36,160.94,160.9,8.70551259]
[1749685307018,34.06551259,160.94,160.89,27.35516145]
[1749685307218,38.94465377,160.94,160.89,32.23430263]
[1749685307389,25.36,160.94,160.89,32.23430263]
[1749685307595,13.58465377,160.94,160.89,32.23430263]
[1749685307797,38.94465377,160.94,160.89,32.23430263]
[1749685308398,13.58465377,160.93,160.88,19.02465377]
[1749685308610,13.58465377,160.92,160.88,5.44]
[1749685308824,13.58465377,160.89,160.84,26.0]
[1749685309018,13.58465377,160.89,160.86,5.44]
[1749685309607,25.36,160.91,160.86,5.44]
[1749685309608,13.58465377,160.9,160.86,5.44]
[1749685310330,13.58465377,160.9,160.86,19.02465377]
[1749685312624,13.58465377,160.89,160.86,5.44]
[1749685312820,25.36,160.88,160.86,5.44]
[1749685313009,13.58465377,160.87,160.86,5.44]
[1749685314335,6.21658585,160.86,160.79,24.06964886]
[1749685314522,13.58465377,160.83,160.79,24.06964886]
[1749685316327,13.58465377,160.83,160.79,37.65430263]
[1749685317518,13.58465377,160.83,160.79,24.06964886]
[1749685318538,13.58465377,160.83,160.79,5.42]
[1749685319717,13.58465377,160.83,160.79,19.00465377]
[1749685321228,13.58465377,160.83,160.79,5.42]
[1749685321427,13.58465377,160.83,160.79,19.00465377]
[1749685322736,13.58465377,160.83,160.79,5.42]
[1749685322926,31.57708714,160.85,160.79,5.42]
[1749685323246,13.58465377,160.82,160.79,5.42]
[1749685323425,13.58465377,160.8,160.79,5.42]
[1749685324419,25.36,160.81,160.79,5.42]
[1749685324622,25.36,160.81,160.79,19.00465377]
[1749685324834,38.94465377,160.84,160.79,19.00465377]
[1749685325751,13.58465377,160.85,160.8,32.23430263]
[1749685326040,25.36,160.85,160.81,13.58465377]
[1749685326220,13.58465377,160.86,160.81,13.58465377]
[1749685326415,38.94465377,160.86,160.81,13.58465377]
[1749685327816,13.58465377,160.86,160.81,13.58465377]
[1749685328029,38.94465377,160.86,160.81,13.58465377]
[1749685328944,13.58465377,160.85,160.81,13.58465377]
[1749685329334,13.58465377,160.85,160.8,32.23430263]
[1749685329532,13.58465377,160.83,160.79,19.00465377]
[1749685329734,13.58465377,160.82,160.79,5.44]
[1749685330348,13.58465377,160.83,160.79,5.44]
[1749685330725,13.58465377,160.83,160.79,19.02465377]
[1749685332155,13.58465377,160.84,160.79,19.02465377]
[1749685333149,25.36,160.86,160.79,19.02465377]
[1749685333450,13.58465377,160.85,160.8,13.58465377]
[1749685333653,13.58465377,160.84,160.79,19.02465377]
[1749685335032,13.58465377,160.84,160.8,13.58465377]
[1749685338730,13.58465377,160.86,160.81,32.23430263]
[1749685338938,13.58465377,160.87,160.82,13.58465377]
[1749685341563,13.58465377,160.84,160.8,18.64964886]
[1749685342742,13.58465377,160.85,160.8,32.23430263]
[1749685343346,13.58465377,160.85,160.8,18.64964886]
[1749685343741,13.58465377,160.85,160.8,32.23430263]
[1749685344843,13.58465377,160.83,160.79,5.44]
[1749685345043,13.58465377,160.82,160.79,5.44]
[1749685345265,13.58465377,160.83,160.79,5.44]
[1749685347230,6.216342,160.87,160.79,5.44]
[1749685347556,13.58465377,160.85,160.8,13.58465377]
[1749685348044,26.9551,160.88,160.8,13.58465377]
[1749685348241,13.58465377,160.85,160.8,13.58465377]
[1749685348952,13.58465377,160.86,160.81,13.58465377]
[1749685350970,13.58465377,160.83,160.8,18.64964886]
[1749685351431,13.58465377,160.84,160.8,18.64964886]
[1749685356675,13.58465377,160.83,160.79,5.44]
[1749685356843,13.58465377,160.82,160.79,5.44]
[1749685357549,6.21704517,160.85,160.79,5.44]
[1749685357550,13.58465377,160.83,160.79,5.44]
[1749685362865,13.58465377,160.83,160.79,19.02465377]
[1749685363064,13.58465377,160.85,160.8,13.58465377]
[1749685363374,13.58465377,160.87,160.82,13.58465377]
[1749685364068,13.58465377,160.85,160.8,32.23430263]
[1749685364256,13.58465377,160.84,160.8,18.64964886]
[1749685367467,13.58465377,160.82,160.79,5.44]
[1749685369273,13.58465377,160.81,160.79,5.44]
[1749685369677,13.58465377,160.8,160.79,5.44]
[1749685372452,37.90520443,160.83,160.79,5.44]
[1749685372659,13.58465377,160.8,160.79,5.44]
[1749685377776,6.218188,160.82,160.79,5.44]
[1749685378093,13.58465377,160.81,160.79,5.44]
[1749685381293,13.58465377,160.8,160.79,5.44]
[1749685382682,19.80355924,160.8,160.79,5.44]
[1749685382882,13.58465377,160.8,160.79,5.44]
[1749685383798,13.58465377,160.8,160.74,19.00465377]
[1749685384297,25.36,160.79,160.74,19.00465377]
[1749685388001,13.58465377,160.78,160.74,5.42]
[1749685390084,13.58465377,160.77,160.74,5.42]
[1749685391503,13.58465377,160.78,160.74,5.42]
[1749685392283,13.58465377,160.78,160.74,19.00465377]
[1749685393206,38.94465377,160.79,160.74,19.00465377]
[1749685394301,7.9636,160.83,160.76,13.58465377]
[1749685394602,25.36,160.82,160.78,13.58465377]
[1749685394995,13.58465377,160.81,160.77,13.58465377]
[1749685396002,13.58465377,160.81,160.75,18.64964886]
[1749685396193,13.58465377,160.81,160.77,13.58465377]
[1749685396393,13.58465377,160.81,160.76,13.58465377]
[1749685398288,13.58465377,160.81,160.77,5.42]
[1749685400694,13.58465377,160.78,160.77,5.42]
[1749685400890,38.94465377,160.78,160.77,5.42]
[1749685402712,25.36,160.78,160.77,5.42]
[1749685403008,38.94465377,160.78,160.77,5.42]
[1749685403509,25.36,160.78,160.77,5.42]
[1749685403708,51.36,160.79,160.77,5.42]
[1749685404007,13.58465377,160.81,160.77,5.42]
[1749685404214,25.36,160.8,160.77,5.42]
[1749685404723,38.94465377,160.8,160.77,5.42]
[1749685405993,25.36,160.8,160.77,5.42]
[1749685406189,38.94465377,160.8,160.77,5.42]
[1749685408929,6.3273,160.83,160.77,19.00465377]
[1749685409111,38.94465377,160.82,160.77,19.00465377]
[1749685410320,38.94465377,160.82,160.78,13.58465377]
[1749685413132,13.58465377,160.82,160.77,19.00465377]
[1749685413424,25.36,160.81,160.77,19.00465377]
[1749685414621,149.1,160.84,160.79,13.58465377]
[1749685414825,39.58465377,160.85,160.8,13.58465377]
[1749685415035,25.36,160.84,160.8,13.58465377]
[1749685415248,13.58465377,160.85,160.8,13.58465377]
[1749685415530,38.94465377,160.84,160.8,13.58465377]
[1749685415721,13.58465377,160.84,160.8,13.58465377]
[1749685415903,38.94465377,160.84,160.8,13.58465377]
[1749685419219,25.36,160.83,160.8,13.58465377]
[1749685421430,23.86,160.83,160.78,18.64964886]
[1749685421610,23.86,160.83,160.8,13.58465377]
[1749685424602,13.58465377,160.82,160.76,1.6322]
[1749685424809,13.58465377,160.79,160.76,5.42]
[1749685425032,38.94465377,160.8,160.76,19.00465377]
[1749685425230,13.58465377,160.8,160.76,19.00465377]
[1749685425816,38.94465377,160.81,160.76,19.00465377]
[1749685427030,6.21684913,160.86,160.79,13.58465377]
[1749685427235,26.0,160.83,160.8,13.58465377]
[1749685427536,13.58465377,160.84,160.8,13.58465377]
[1749685428123,25.36,160.85,160.8,13.58465377]
[1749685428311,13.58465377,160.84,160.8,13.58465377]
[1749685430117,25.36,160.84,160.8,13.58465377]
[1749685431133,25.36,160.84,160.81,13.58465377]
[1749685431917,26.0,160.86,160.82,13.58465377]
[1749685432116,25.36,160.85,160.82,13.58465377]
[1749685433022,25.36,160.85,160.78,0.14216157]
[1749685433225,25.36,160.85,160.82,13.58465377]
[1749685434717,13.58465377,160.87,160.82,13.58465377]
[1749685434922,25.36,160.86,160.82,13.58465377]
[1749685435338,13.58465377,160.87,160.82,13.58465377]
[1749685435529,25.36,160.86,160.82,13.58465377]
[1749685436122,26.0,160.89,160.84,13.58465377]
[1749685436321,25.36,160.88,160.84,13.58465377]
[1749685436955,13.58465377,160.89,160.84,13.58465377]
[1749685437123,25.36,160.88,160.84,13.58465377]
[1749685438244,13.58465377,160.89,160.84,13.58465377]
[1749685438434,25.36,160.88,160.84,13.58465377]
[1749685440644,38.94465377,160.88,160.84,13.58465377]
[1749685441948,25.34,160.87,160.84,13.58465377]
[1749685442143,25.34,160.87,160.83,5.42]
[1749685442451,38.92465377,160.87,160.83,19.00465377]
[1749685443232,13.58465377,160.84,160.83,5.42]
[1749685443428,38.92465377,160.84,160.83,5.42]
[1749685443735,25.34,160.84,160.81,13.58465377]
[1749685447764,38.92465377,160.84,160.8,5.42]
[1749685449895,31.55739092,160.84,160.8,5.42]
[1749685450040,13.58465377,160.81,160.8,5.42]
[1749685450240,38.92465377,160.81,160.8,5.42]
[1749685451853,45.14317251,160.81,160.8,5.42]
[1749685453671,31.55851874,160.81,160.8,5.42]
[1749685454056,45.14317251,160.81,160.8,5.42]
[1749685455570,38.92465377,160.81,160.8,5.42]
[1749685455756,45.14317251,160.81,160.8,5.42]
[1749685456377,38.92465377,160.81,160.8,5.42]
[1749685457269,45.14317251,160.81,160.8,5.42]
[1749685457975,25.36,160.81,160.8,5.42]
[1749685458468,38.94465377,160.81,160.8,5.42]
[1749685462787,38.94465377,160.81,160.76,19.00465377]
[1749685463169,25.36,160.81,160.76,19.00465377]
[1749685463466,38.94465377,160.81,160.77,13.58465377]
[1749685464162,38.94465377,160.81,160.76,19.00465377]
[1749685466285,25.36,160.81,160.77,13.58465377]
[1749685466484,38.94465377,160.81,160.77,13.58465377]
[1749685467280,13.58465377,160.8,160.76,19.00465377]
[1749685467484,25.36,160.79,160.76,19.00465377]
[1749685467865,25.36,160.8,160.77,13.58465377]
[1749685468260,155.4869,160.85,160.79,13.58465377]
[1749685468468,13.58465377,160.83,160.78,32.23430263]
[1749685468667,25.36,160.82,160.78,32.23430263]
[1749685469162,13.58465377,160.83,160.78,32.23430263]
[1749685469362,25.36,160.82,160.78,32.23430263]
[1749685469786,149.1,160.85,160.8,13.58465377]
[1749685469967,0.28432314,160.88,160.82,13.58465377]
[1749685469968,6.21582324,160.88,160.82,13.58465377]
[1749685470174,38.94465377,160.87,160.82,13.58465377]
[1749685470374,25.36,160.86,160.83,13.58465377]
[1749685470678,25.36,160.86,160.84,13.58465377]
[1749685471471,25.36,160.87,160.84,13.58465377]
[1749685472789,25.34,160.87,160.84,13.58465377]
[1749685474870,25.34,160.88,160.85,13.58465377]
[1749685475169,25.34,160.88,160.84,13.58465377]
[1749685478388,25.34,160.88,160.85,13.58465377]
[1749685478775,13.58465377,160.89,160.85,13.58465377]
[1749685479087,32.21493139,160.91,160.85,13.58465377]
[1749685479088,13.58465377,160.9,160.85,13.58465377]
[1749685479290,25.34,160.89,160.85,13.58465377]
[1749685479771,38.92465377,160.89,160.85,13.58465377]
[1749685480985,25.34,160.88,160.85,13.58465377]
[1749685481482,25.34,160.88,160.84,19.00465377]
[1749685482091,13.58465377,160.89,160.84,19.00465377]
[1749685482294,25.34,160.88,160.85,13.58465377]
[1749685484288,25.34,160.88,160.84,5.42]
[1749685484495,25.34,160.88,160.85,13.58465377]
[1749685485675,25.34,160.88,160.86,13.58465377]
[1749685485880,25.34,160.88,160.85,13.58465377]
[1749685489700,25.34,160.88,160.84,5.42]
[1749685489885,25.34,160.88,160.85,13.58465377]
[1749685493376,25.34,160.88,160.85,8.70005459]
[1749685493796,25.34,160.88,160.84,14.12005459]
[1749685495597,8.70005459,160.85,160.78,1.5199]
[1749685495896,25.34,160.88,160.8,18.64964886]
[1749685495897,34.04005459,160.84,160.8,18.64964886]
[1749685496076,34.04005459,160.84,160.79,32.76970345]
[1749685496279,25.34,160.84,160.8,8.70005459]
[1749685496679,25.34,160.84,160.81,8.70005459]
[1749685496890,25.34,160.84,160.8,8.70005459]
[1749685498900,31.55741552,160.84,160.79,5.42]
[1749685499078,8.70005459,160.81,160.79,5.42]
[1749685499280,13.60852743,160.8,160.79,5.42]
[1749685500408,38.94852743,160.81,160.79,5.42]
[1749685500612,13.60852743,160.8,160.79,5.42]
[1749685502004,31.55857102,160.81,160.79,5.42]
[1749685502221,13.60852743,160.8,160.79,5.42]
[1749685504615,38.94852743,160.81,160.79,5.42]
[1749685506713,25.34,160.81,160.79,5.42]
[1749685506914,38.94852743,160.81,160.79,5.42]
[1749685508414,45.16711681,160.81,160.79,5.42]
[1749685508610,13.60852743,160.8,160.79,5.42]
[1749685509814,38.94852743,160.81,160.79,5.42]
[1749685510607,45.1671616,160.81,160.79,5.42]
[1749685511108,13.60852743,160.8,160.79,5.42]
[1749685512209,6.6463,160.87,160.79,19.02852743]
[1749685512405,25.34,160.85,160.82,13.60852743]
[1749685512808,162.70852743,160.86,160.79,5.42]
[1749685513016,25.34,160.85,160.82,13.60852743]
[1749685515036,25.34,160.85,160.81,13.60852743]
[1749685516018,155.31672265,160.86,160.81,13.60852743]
[1749685516224,25.34,160.84,160.81,13.60852743]
[1749685516920,168.92525008,160.86,160.81,13.60852743]
[1749685517126,25.34,160.85,160.81,13.60852743]
[1749685517623,38.94852743,160.85,160.81,13.60852743]
[1749685519321,45.16550865,160.85,160.79,5.42]
[1749685519532,13.60852743,160.84,160.79,5.42]
[1749685519699,13.60852743,160.84,160.8,13.60852743]
[1749685519700,25.34,160.83,160.8,13.60852743]
[1749685519904,25.34,160.83,160.79,5.42]
[1749685520104,13.60852743,160.81,160.79,5.42]
[1749685520409,38.94852743,160.81,160.79,5.42]
[1749685521221,25.34,160.81,160.79,5.42]
[1749685531516,38.94852743,160.81,160.79,5.42]
[1749685532714,25.34,160.81,160.79,5.42]
[1749685541627,13.60852743,160.8,160.79,5.42]
[1749685544931,38.94852743,160.81,160.79,5.42]
[1749685545745,25.34,160.8,160.79,5.42]
[1749685547032,25.34,160.8,160.77,13.60852743]
[1749685547733,0.42648471,160.85,160.78,13.60852743]
[1749685547928,13.60852743,160.82,160.78,13.60852743]
[1749685548250,25.34,160.81,160.78,13.60852743]
[1749685548719,25.34,160.81,160.75,5.42]
[1749685548925,25.34,160.81,160.77,13.60852743]
[1749685549830,25.34,160.8,160.77,13.60852743]
[1749685553345,25.34,160.8,160.77,8.70875095]
[1749685553729,25.34,160.8,160.75,5.42]
[1749685553936,25.34,160.8,160.76,8.70875095]
[1749685555254,25.34,160.8,160.77,8.70875095]
[1749685558763,31.55909259,160.8,160.77,8.70875095]
[1749685558965,40.26784354,160.8,160.75,5.42]
[1749685559149,8.70875095,160.77,160.75,5.42]
[1749685559344,8.70875095,160.76,160.75,5.42]
[1749685559648,14.92920379,160.76,160.75,5.42]
[1749685561356,19.83668914,160.76,160.75,5.42]
[1749685562163,61.38782126,160.76,160.68,5.42]
[1749685562337,26.0,160.73,160.67,5.42]
[1749685562536,13.6162363,160.71,160.67,5.42]
[1749685562757,13.6162363,160.68,160.67,5.42]
[1749685562964,38.9562363,160.68,160.67,5.42]
[1749685563638,25.34,160.68,160.67,5.42]
[1749685564040,45.17978621,160.68,160.67,5.42]
[1749685567946,60.73866099,160.68,160.61,1.6445]
[1749685568174,13.6162363,160.65,160.6,19.0362363]
[1749685568340,25.34,160.64,160.6,19.0362363]
[1749685568941,25.34,160.64,160.6,5.42]
[1749685569237,25.34,160.64,160.6,19.0362363]
[1749685569843,6.22548714,160.63,160.6,19.0362363]
[1749685570140,25.34,160.62,160.6,5.42]
[1749685570936,38.9562363,160.62,160.58,42.96]
[1749685571165,13.6162363,160.61,160.56,37.68588516]
[1749685571354,25.34,160.6,160.56,37.68588516]
[1749685571854,6.22703779,160.59,160.56,19.0362363]
[1749685572359,6.22703779,160.59,160.56,5.42]
[1749685572569,6.22703779,160.59,160.56,19.0362363]
[1749685572897,25.34,160.58,160.56,19.0362363]
[1749685573464,25.34,160.58,160.56,5.42]
[1749685574265,25.34,160.58,160.56,19.0362363]
[1749685574448,25.34,160.58,160.56,5.42]
[1749685575262,45.18371475,160.58,160.56,5.42]
[1749685575558,19.84404971,160.57,160.56,5.42]
[1749685577177,13.6162363,160.57,160.56,5.42]
[1749685580566,19.84404971,160.57,160.56,5.42]
[1749685585291,19.84404971,160.57,160.49,25.64464886]
[1749685585586,13.6162363,160.52,160.49,6.995]
[1749685585772,13.6162363,160.52,160.49,5.42]
[1749685585773,25.36,160.51,160.49,5.42]
[1749685588388,38.9762363,160.51,160.49,5.42]
[1749685588759,38.9762363,160.51,160.46,32.26588516]
[1749685589593,25.36,160.51,160.47,13.6162363]
[1749685589885,38.9762363,160.51,160.47,13.6162363]
[1749685590882,25.36,160.51,160.48,13.6162363]
[1749685591056,25.36,160.51,160.49,13.6162363]
[1749685591481,25.36,160.51,160.46,18.64964886]
[1749685591661,25.36,160.51,160.5,13.6162363]
[1749685592181,25.36,160.52,160.5,13.6162363]
[1749685594264,38.9762363,160.52,160.47,13.6162363]
[1749685594776,13.6162363,160.51,160.46,13.6162363]
[1749685594973,25.36,160.5,160.46,13.6162363]
[1749685595175,25.36,160.5,160.47,13.6162363]
[1749685599275,25.36,160.5,160.45,27.64]
[1749685599485,25.36,160.5,160.47,13.6162363]
[1749685604400,25.36,160.5,160.45,27.64]
[1749685604587,25.36,160.5,160.47,13.6162363]
[1749685606082,26.0,160.55,160.48,13.6162363]
[1749685606281,38.9762363,160.54,160.46,18.64964886]